bitfinex/quotes_ETHUSD_20241006
["timestamp","ask_amount","ask_price","bid_price","bid_amount"]
[1728241658566,0.7528,2454.3,2453.7,3.26028]
[1728241659847,0.7528,2454.3,2453.7,6.52057]
[1728241660052,0.7528,2454.3,2453.7,3.26028]
[1728241660250,0.7528,2454.3,2453.6,0.8046]
[1728241660435,6.62182596,2454.0,2453.4,2.50277884]
[1728241660785,0.7374626,2453.9,2453.4,0.8046]
[1728241660936,3.26003,2454.0,2453.4,0.8046]
[1728241661468,0.7528,2454.1,2453.4,0.8046]
[1728241661668,4.01274,2454.1,2453.4,4.06528]
[1728241662586,0.7528,2454.1,2453.5,3.26056]
[1728241666176,0.7528,2454.1,2453.6,3.26049]
[1728241669415,0.7528,2454.1,2453.4,1.69817884]
[1728241669416,3.26025,2453.8,2453.4,1.69817884]
[1728241669607,0.7806,2453.9,2453.4,3.26074]
[1728241670410,0.7806,2453.9,2453.4,6.52143]
[1728241670583,0.7806,2453.9,2453.5,4.05922]
[1728241670789,0.7806,2453.9,2453.5,0.7986]
[1728241671012,0.7806,2453.9,2453.6,3.26049]
[1728241671876,0.7806,2454.2,2453.7,3.26037]
[1728241672188,0.7806,2454.2,2453.8,0.652086]
[1728241672897,10.70946,2454.4,2453.9,3.2601]
[1728241672898,7.45,2454.4,2453.9,3.2601]
[1728241673096,6.72607,2454.5,2453.9,4.0587]
[1728241673297,6.72607,2454.5,2453.9,0.7986]
[1728241674020,3.46675,2454.5,2453.9,0.7986]
[1728241674313,3.46675,2454.5,2453.9,1.5957106]
[1728241674813,6.72609,2454.5,2453.9,1.5957106]
[1728241675921,3.46675,2454.5,2453.9,4.8558006]
[1728241676222,2.68615,2454.5,2454.0,3.25989]
[1728241676535,2.68615,2454.5,2454.1,0.81156906]
[1728241682026,2.68615,2454.5,2453.9,3.29388944]
[1728241682225,3.25956,2454.4,2453.9,3.29388944]
[1728241682746,2.68615,2454.5,2454.0,3.25997]
[1728241682947,2.68615,2454.5,2454.0,4.95814884]
[1728241685317,2.68615,2454.5,2454.1,1.69817884]
[1728241686462,2.68615,2454.5,2454.1,2.89215884]
[1728241689753,5.9455,2454.5,2454.1,2.89215884]
[1728241690055,5.9455,2454.5,2454.1,1.69817884]
[1728241695934,5.9455,2454.5,2454.2,0.782]
[1728241696375,2.68615,2454.5,2454.2,0.782]
[1728241696938,8.08828116,2455.0,2454.5,0.782]
[1728241697142,9.99903,2455.3,2454.6,3.25916]
[1728241697374,7.689373,2455.3,2454.7,0.782]
[1728241697579,3.25843,2455.2,2454.7,0.782]
[1728241697941,7.689373,2455.3,2454.7,4.04103]
[1728241698141,5.94447,2455.3,2454.7,4.04103]
[1728241700080,3.25839,2455.2,2454.7,4.04103]
[1728241700488,3.25839,2455.2,2454.7,0.782]
[1728241701868,5.94447,2455.3,2454.7,4.04104]
[1728241703091,5.94447,2455.3,2454.8,0.7526]
[1728241703289,5.94447,2455.3,2454.9,0.401164]
[1728241703585,9.20282,2455.3,2454.9,0.401164]
[1728241704166,5.94447,2455.3,2454.9,0.401164]
[1728241704758,5.94447,2455.3,2455.0,0.7526]
[1728241705154,2.68615,2455.3,2455.0,0.7526]
[1728241705592,2.68615,2455.3,2455.1,0.4412524]
[1728241706665,2.68615,2455.3,2455.2,0.7526]
[1728241712411,5.9444,2455.3,2455.0,0.7526]
[1728241712587,3.2584,2455.2,2455.0,0.7526]
[1728241713282,5.9444,2455.3,2455.0,0.7526]
[1728241713667,5.9444,2455.3,2455.0,1.1938644]
[1728241714071,2.68615,2455.3,2455.0,1.1938644]
[1728241715820,2.68615,2455.3,2455.0,0.4412644]
[1728241716010,2.68615,2455.3,2454.9,0.401164]
[1728241716011,4.01718164,2456.0,2455.3,0.7526]
[1728241716223,3.25746,2455.9,2455.4,1.54976186]
[1728241716377,3.25774,2455.7,2455.3,0.7526]
[1728241716573,3.25774,2455.7,2455.3,1.15369]
[1728241720217,3.25774,2455.7,2454.9,1.69817884]
[1728241720218,3.258,2455.5,2454.9,8.31379203]
[1728241720404,3.258,2455.5,2455.0,0.7526]
[1728241721439,3.258,2455.5,2455.0,4.01124]
[1728241722699,0.8275,2455.6,2455.0,4.01124]
[1728241723040,4.08536,2455.6,2455.0,5.2437502]
[1728241724765,0.7581,2455.9,2455.1,3.35683319]
[1728241724928,4.01566,2455.9,2455.2,0.8306]
[1728241725135,3.25767,2455.8,2455.2,0.8306]
[1728241725954,3.25767,2455.8,2455.2,4.08896]
[1728241727556,3.25781,2455.7,2455.2,0.8306]
[1728241727760,3.99715416,2455.8,2455.2,4.08892]
[1728241728256,3.25781,2455.7,2455.2,0.8306]
[1728241732550,3.25786,2455.6,2455.2,0.8306]
[1728241732765,3.25781,2455.7,2455.2,0.8306]
[1728241733667,3.25788,2455.6,2455.2,0.8306]
[1728241734158,3.25781,2455.7,2455.2,0.8306]
[1728241734589,3.25788,2455.6,2455.2,0.8306]
[1728241737055,3.25781,2455.7,2455.2,0.8306]
[1728241737958,6.51566,2455.7,2455.2,0.8306]
[1728241738156,3.25781,2455.7,2455.2,0.8306]
[1728241739755,3.25787,2455.6,2455.2,0.8306]
[1728241740054,3.25781,2455.7,2455.2,0.8306]
[1728241741273,3.25781,2455.7,2455.2,2.52877884]
[1728241741899,3.25787,2455.6,2455.2,2.52877884]
[1728241742481,3.25781,2455.7,2455.2,2.52877884]
[1728241743196,3.25781,2455.7,2455.3,1.69817884]
[1728241743900,3.25794,2455.6,2455.2,2.52877884]
[1728241744256,3.25794,2455.6,2455.3,1.69817884]
[1728241744917,0.72552542,2455.6,2455.3,1.69817884]
[1728241745117,3.25852,2455.1,2454.9,1.69817884]
[1728241745404,3.25852,2455.1,2454.8,2.11836494]
[1728241745405,4.07378,2454.9,2454.8,1.69817884]
[1728241745609,4.07378,2454.9,2454.6,2.93006494]
[1728241745610,3.25905,2454.7,2454.6,1.69817884]
[1728241745827,3.25905,2454.7,2454.5,2.11836494]
[1728241745828,3.25918,2454.6,2454.5,1.69817884]
[1728241746114,3.25918,2454.6,2454.4,1.69817884]
[1728241746469,3.25931,2454.5,2454.4,1.69817884]
[1728241746675,3.25931,2454.5,2454.3,1.69817884]
[1728241747476,3.25931,2454.5,2454.2,1.69817884]
[1728241749277,4.07387,2454.9,2454.4,0.8117]
[1728241749501,4.07387,2454.9,2454.4,2.50987884]
[1728241750027,7.33276,2454.9,2454.4,2.50987884]
[1728241750202,3.25896,2454.8,2454.4,2.50987884]
[1728241752019,3.25887,2454.9,2454.5,1.69817884]
[1728241752598,10.70858,2455.1,2454.5,1.69817884]
[1728241752774,3.25866,2455.0,2454.5,1.69817884]
[1728241754201,3.25858,2455.1,2454.5,1.69817884]
[1728241754407,3.25879,2454.9,2454.5,2.91160683]
[1728241755348,3.25892,2454.8,2454.5,2.91160683]
[1728241755492,3.25879,2454.9,2454.5,2.91160683]
[1728241755692,3.25879,2454.9,2454.5,1.69817884]
[1728241764511,3.25893,2454.8,2454.5,1.69817884]
[1728241765302,3.20893,2454.8,2454.5,1.69817884]
[1728241765619,3.25905,2454.7,2454.5,1.69817884]
[1728241766702,3.25905,2454.7,2454.4,0.8117]
[1728241766703,3.25905,2454.7,2454.4,2.50987884]
[1728241770146,6.51823,2454.7,2454.4,1.69817884]
[1728241770343,3.25922,2454.6,2454.4,1.69817884]
[1728241770547,3.25931,2454.5,2454.3,2.12627537]
[1728241770734,3.25931,2454.5,2454.2,1.69817884]
[1728241771440,3.25947,2454.4,2454.2,1.69817884]
[1728241771646,3.25947,2454.4,2454.1,0.42809653]
[1728241771647,3.2596,2454.3,2454.1,2.12627537]
[1728241771845,3.2596,2454.3,2454.1,1.69817884]
[1728241772265,3.2596,2454.3,2454.0,1.69817884]
[1728241772571,3.2596,2454.3,2454.0,2.12697625]
[1728241772937,3.25947,2454.4,2454.0,2.12697625]
[1728241773137,3.25947,2454.4,2454.0,1.69817884]
[1728241773543,3.25959,2454.3,2454.0,1.69817884]
[1728241774041,3.25947,2454.4,2454.1,0.8056]
[1728241775271,0.7822,2454.6,2453.9,2.50377884]
[1728241775272,3.25985,2454.1,2453.9,2.50377884]
[1728241775443,3.25985,2454.1,2453.9,0.8056]
[1728241776278,3.25971,2454.2,2453.9,0.8056]
[1728241777370,6.51953,2454.2,2453.9,0.8056]
[1728241778080,3.25987,2454.1,2453.9,0.8056]
[1728241780085,3.25971,2454.2,2453.9,1.31121362]
[1728241780258,3.25971,2454.2,2454.0,1.5509382]
[1728241781347,3.25985,2454.1,2454.0,1.5509382]
[1728241781982,3.25985,2454.1,2453.9,1.31121362]
[1728241782562,3.25998,2454.0,2453.9,1.31121362]
[1728241783161,3.25967,2454.3,2453.9,1.31121362]
[1728241783360,3.25953,2454.4,2454.0,0.45603307]
[1728241783685,3.25968,2454.3,2454.0,0.45603307]
[1728241784603,3.25973,2454.2,2454.0,0.45603307]
[1728241784960,3.25953,2454.4,2454.0,2.00697127]
[1728241785565,3.2596,2454.3,2454.0,2.00697127]
[1728241785900,3.2596,2454.3,2454.1,0.45107501]
[1728241787588,3.25971,2454.2,2454.1,0.45107501]
[1728241787787,3.25998,2454.0,2453.8,1.69817884]
[1728241787987,3.26011,2453.9,2453.6,2.46717884]
[1728241788197,3.26032,2453.8,2453.6,0.769]
[1728241788550,3.26032,2453.8,2453.6,1.38312203]
[1728241788689,3.26011,2453.9,2453.6,1.38312203]
[1728241788690,6.52033,2453.9,2453.6,1.38312203]
[1728241788878,3.26011,2453.9,2453.6,1.38312203]
[1728241790000,3.2603,2453.8,2453.6,1.38312203]
[1728241790379,3.26038,2453.7,2453.6,1.38312203]
[1728241790886,3.26064,2453.5,2453.4,2.46717884]
[1728241791401,3.26046,2453.7,2453.4,2.3199382]
[1728241791605,3.2603,2453.8,2453.4,2.3199382]
[1728241791803,3.26053,2453.6,2453.5,0.4018117]
[1728241794513,3.26078,2453.4,2453.2,1.5509382]
[1728241795511,3.26057,2453.6,2453.2,1.5509382]
[1728241799212,3.26078,2453.4,2453.1,0.769]
[1728241799415,3.26078,2453.4,2453.1,2.82188632]
[1728241801825,3.26057,2453.6,2453.3,1.5509382]
[1728241802331,3.26057,2453.6,2453.4,0.769]
[1728241802902,3.26057,2453.6,2453.1,1.27094812]
[1728241803223,3.26104,2453.2,2452.9,2.3414382]
[1728241803424,3.26104,2453.2,2452.9,3.00065585]
[1728241803726,3.26028,2453.8,2453.2,0.7905]
[1728241803892,3.26019,2453.9,2453.6,2.3414382]
[1728241804313,3.26004,2454.0,2453.6,2.3414382]
[1728241804792,3.26004,2454.0,2453.8,1.5509382]
[1728241806828,3.25977,2454.2,2453.8,1.5509382]
[1728241807030,6.51958,2454.2,2453.8,1.5509382]
[1728241807657,3.25977,2454.2,2453.8,1.5509382]
[1728241807823,3.25985,2454.1,2453.8,1.5509382]
[1728241808245,3.25977,2454.2,2453.9,0.7905]
[1728241808418,3.25977,2454.2,2454.0,1.5509382]
[1728241808623,3.25952,2454.4,2454.0,1.5509382]
[1728241809157,3.25926,2454.6,2454.1,0.7905]
[1728241809354,3.2594,2454.5,2454.1,0.7905]
[1728241810649,3.25948,2454.4,2454.1,0.7905]
[1728241810960,3.25948,2454.4,2454.1,1.02464382]
[1728241816741,3.25926,2454.6,2454.1,1.02464382]
[1728241817472,6.51854,2454.6,2454.1,1.02464382]
[1728241817933,3.2594,2454.5,2454.1,1.02464382]
[1728241820245,3.25926,2454.6,2454.1,2.72282266]
[1728241820441,3.25932,2454.5,2454.1,2.72282266]
[1728241821737,3.25951,2454.4,2454.1,2.72282266]
[1728241821941,3.25951,2454.4,2454.1,2.48867884]
[1728241822948,6.51856,2454.6,2454.1,2.48867884]
[1728241824736,6.51856,2454.6,2454.1,0.7905]
[1728241825174,3.25926,2454.6,2454.1,0.7905]
[1728241825352,3.25926,2454.6,2454.1,2.48867884]
[1728241825551,3.25898,2454.8,2454.2,1.5509382]
[1728241825752,3.25907,2454.7,2454.3,0.8323]
[1728241825939,3.25898,2454.8,2454.3,0.8323]
[1728241826270,3.25898,2454.8,2454.3,0.85346457]
[1728241826594,4.03771,2455.0,2454.4,2.00597773]
[1728241826740,3.259,2454.8,2454.4,2.00597773]
[1728241826943,3.259,2454.8,2454.4,1.96119636]
[1728241827240,3.25914,2454.7,2454.4,1.96119636]
[1728241830654,3.259,2454.8,2454.4,1.96119636]
[1728241831066,3.259,2454.8,2454.4,0.41025816]
[1728241831677,3.25907,2454.7,2454.4,0.41025816]
[1728241831855,3.259,2454.8,2454.4,0.41025816]
[1728241832058,6.51802,2454.8,2454.4,0.41025816]
[1728241832581,3.259,2454.8,2454.4,0.41025816]
[1728241834012,3.259,2454.8,2454.6,0.785]
[1728241840203,6.51801,2454.8,2454.6,0.785]
[1728241840472,3.259,2454.8,2454.6,0.785]
[1728241842614,6.51801,2454.8,2454.6,0.785]
[1728241843373,3.259,2454.8,2454.6,0.785]
[1728241843569,3.25905,2454.7,2454.6,0.785]
[1728241843771,3.25919,2454.6,2454.3,4.00341704]
[1728241843989,3.25919,2454.6,2454.3,2.97947637]
[1728241844411,3.25919,2454.6,2454.3,4.67765521]
[1728241844609,3.25919,2454.6,2454.3,2.97947637]
[1728241845026,3.25919,2454.6,2454.3,4.67765521]
[1728241846327,3.25919,2454.6,2454.4,0.42942919]
[1728241846528,3.25919,2454.6,2454.3,4.67765521]
[1728241847129,6.51801,2454.8,2454.3,4.67765521]
[1728241847328,6.51801,2454.8,2454.4,1.10970531]
[1728241847488,6.51801,2454.8,2454.4,0.68018886]
[1728241848536,3.25912,2454.7,2454.4,0.68018886]
[1728241849148,3.25912,2454.7,2454.4,2.3783677]
[1728241850225,4.0168,2454.6,2454.4,1.69817884]
[1728241850924,3.25931,2454.5,2454.4,1.69817884]
[1728241851302,3.25909,2454.7,2454.4,2.88219901]
[1728241851505,3.25897,2454.8,2454.4,2.45247884]
[1728241851821,3.25922,2454.6,2454.4,2.45247884]
[1728241852190,3.25922,2454.6,2454.4,1.69817884]
[1728241852435,4.01691,2454.5,2454.4,1.69817884]
[1728241852641,4.01691,2454.5,2454.3,1.69817884]
[1728241852642,3.25945,2454.4,2454.3,1.69817884]
[1728241856208,3.25922,2454.6,2454.3,1.69817884]
[1728241856456,3.25922,2454.6,2454.4,1.69817884]
[1728241857843,3.25931,2454.5,2454.4,1.69817884]
[1728241860652,3.25922,2454.6,2454.4,1.69817884]
[1728241861048,3.25931,2454.5,2454.4,1.69817884]
[1728241862157,3.25931,2454.5,2454.3,1.69817884]
[1728241862937,3.25922,2454.6,2454.3,1.69817884]
[1728241863267,3.25945,2454.4,2454.3,1.70397208]
[1728241863722,3.25958,2454.3,2454.2,1.70397208]
[1728241863926,3.25958,2454.3,2454.1,2.12994452]
[1728241863927,4.08941,2454.2,2454.1,1.70397208]
[1728241864128,3.25985,2454.1,2454.0,1.70397208]
[1728241864444,3.25998,2454.0,2453.9,1.70397208]
[1728241864758,4.08968,2454.0,2453.9,1.70397208]
[1728241865626,4.08968,2454.0,2453.8,1.70397208]
[1728241865827,3.26024,2453.8,2453.7,1.70397208]
[1728241866324,3.26038,2453.7,2453.6,1.70397208]
[1728241866763,3.26038,2453.7,2453.5,2.12994452]
[1728241867137,3.26038,2453.7,2453.6,1.7034757]
[1728241867549,3.26024,2453.8,2453.6,1.7034757]
[1728241869135,6.5206,2453.8,2453.6,1.7034757]
[1728241869341,6.5206,2453.8,2453.5,1.7034757]
[1728241869342,6.52059,2453.8,2453.5,1.7034757]
[1728241869676,3.26024,2453.8,2453.5,1.7034757]
[1728241870247,4.09012,2453.7,2453.5,1.7034757]
[1728241870638,3.26051,2453.6,2453.5,1.7034757]
[1728241871255,3.26051,2453.6,2453.4,1.7034757]
[1728241871453,6.52113,2453.6,2453.4,1.7034757]
[1728241871644,6.52113,2453.6,2453.3,2.12871388]
[1728241871645,6.52113,2453.6,2453.3,1.7034757]
[1728241871987,3.26051,2453.6,2453.2,1.7034757]
[1728241872664,3.26051,2453.6,2453.2,2.68592803]
[1728241872837,3.26051,2453.6,2453.2,4.23686623]
[1728241873385,3.26051,2453.6,2453.2,2.53339053]
[1728241875190,6.52067,2453.8,2453.4,1.5509382]
[1728241875396,3.26039,2453.7,2453.4,1.5509382]
[1728241876226,3.26033,2453.8,2453.6,1.5509382]
[1728241876501,10.78052923,2454.3,2453.7,0.7516]
[1728241876801,3.25954,2454.4,2454.1,1.5509382]
[1728241876997,0.734848,2454.4,2454.1,2.3025382]
[1728241877293,3.25945,2454.4,2454.1,2.3025382]
[1728241877498,6.51902,2454.4,2454.1,2.3025382]
[1728241877671,3.25945,2454.4,2453.9,2.3025382]
[1728241880822,3.25961,2454.3,2453.9,2.3025382]
[1728241881122,3.25961,2454.3,2453.8,1.5509382]
[1728241881123,3.25988,2454.1,2453.8,1.5509382]
[1728241881419,3.25988,2454.1,2453.8,2.08875244]
[1728241884197,7.34898,2454.3,2453.8,2.08875244]
[1728241884521,3.25974,2454.2,2453.8,2.08875244]
[1728241885021,4.08929,2454.3,2453.8,2.08875244]
[1728241885234,3.25974,2454.2,2453.8,2.08875244]
[1728241886426,4.08929,2454.3,2453.8,2.08875244]
[1728241887026,4.08929,2454.3,2453.9,0.45438281]
[1728241888227,7.34898,2454.3,2453.9,0.45438281]
[1728241889961,7.34898,2454.3,2453.8,2.08875244]
[1728241890121,3.25994,2454.1,2453.7,0.7516]
[1728241891676,3.25994,2454.1,2453.7,2.4550757]
[1728241891834,3.25994,2454.1,2453.7,0.7516]
[1728241892040,3.25994,2454.1,2453.7,2.05962387]
[1728241892349,3.25994,2454.1,2453.7,3.76309957]
[1728241893624,3.25994,2454.1,2453.8,1.5509382]
[1728241896028,4.0893,2454.3,2453.8,1.5509382]
[1728241896325,7.34899,2454.3,2453.8,1.5509382]
[1728241896526,3.25975,2454.2,2453.8,1.5509382]
[1728241899969,4.0893,2454.3,2453.8,1.5509382]
[1728241900170,7.34901,2454.3,2453.8,4.32450415]
[1728241900967,7.34901,2454.3,2453.8,2.62102845]
[1728241901275,3.25977,2454.2,2453.8,4.32450415]
[1728241904185,4.0893,2454.3,2453.8,4.32450415]
[1728241904371,7.34897,2454.3,2453.8,4.32450415]
[1728241904748,4.0893,2454.3,2453.8,4.32450415]
[1728241904983,3.25972,2454.2,2453.8,4.32450415]
[1728241905400,3.25985,2454.1,2453.8,3.2544139]
[1728241905601,3.25985,2454.1,2453.8,1.7034757]
[1728241905806,3.26011,2453.9,2453.7,2.4550757]
[1728241906306,3.26011,2453.9,2453.8,1.7034757]
[1728241906598,6.51979,2454.1,2453.7,2.4550757]
[1728241907402,3.25998,2454.0,2453.8,1.7034757]
[1728241908318,4.01991,2453.9,2453.7,1.7034757]
[1728241908500,3.26038,2453.7,2453.5,2.12718655]
[1728241908709,3.662398,2453.7,2453.6,1.70330011]
[1728241908990,3.662398,2453.7,2453.5,2.12718655]
[1728241908991,4.02031,2453.6,2453.5,1.70330011]
[1728241909196,3.26064,2453.5,2453.4,1.70330011]
[1728241911913,3.26064,2453.5,2453.3,1.70330011]
[1728241913002,3.26064,2453.5,2453.4,1.70330011]
[1728241913386,3.26064,2453.5,2453.3,1.70330011]
[1728241916203,4.02031,2453.6,2453.3,1.70330011]
[1728241916902,7.28091,2453.6,2453.3,1.70330011]
[1728241919085,4.02031,2453.6,2453.3,1.70330011]
[1728241919275,7.28092,2453.6,2453.3,1.70330011]
[1728241919700,4.02031,2453.6,2453.3,1.70330011]
[1728241922310,3.26078,2453.4,2453.3,1.70330011]
[1728241924413,4.05171,2453.3,2453.2,1.70330011]
[1728241924759,3.26104,2453.2,2453.1,1.70330011]
[1728241925551,4.05197,2453.1,2453.0,1.70330011]
[1728241925860,3.26131,2453.0,2452.9,1.70330011]
[1728241926017,3.26144,2452.9,2452.8,1.70330011]
[1728241926212,4.1064422,2452.9,2452.8,1.70330011]
[1728241926526,3.26131,2453.0,2452.8,1.70330011]
[1728241926725,3.26121,2453.1,2453.0,0.8197]
[1728241927958,6.52224,2453.2,2453.0,0.8197]
[1728241928156,3.26117,2453.1,2453.0,0.8197]
[1728241929127,3.2611,2453.2,2453.0,0.8197]
[1728241929326,3.26084,2453.4,2453.1,3.66163214]
[1728241929543,6.52172,2453.4,2453.1,3.66163214]
[1728241929727,3.26084,2453.4,2453.1,3.66163214]
[1728241929929,3.26084,2453.4,2453.2,1.70330011]
[1728241930417,3.26084,2453.4,2453.1,1.95833203]
[1728241930418,3.26084,2453.4,2453.1,3.66163214]
[1728241930647,3.26084,2453.4,2453.2,0.66096865]
[1728241930818,3.26084,2453.4,2453.2,2.36426876]
[1728241931214,4.05136,2453.6,2453.3,0.8197]
[1728241931215,3.26056,2453.6,2453.3,0.8197]
[1728241931419,6.52119,2453.6,2453.3,2.3706382]
[1728241931655,6.52119,2453.6,2453.3,4.07393831]
[1728241931656,3.26066,2453.5,2453.3,4.07393831]
[1728241931833,3.26066,2453.5,2453.3,4.84389788]
[1728241932219,3.26031,2453.8,2453.3,4.84389788]
[1728241932457,3.26031,2453.8,2453.5,1.5509382]
[1728241933057,3.26051,2453.6,2453.5,1.5509382]
[1728241933583,6.52113,2453.6,2453.4,1.70330011]
[1728241933735,3.26051,2453.6,2453.4,1.70330011]
[1728241933933,3.26064,2453.5,2453.4,1.70330011]
[1728241935586,3.26078,2453.4,2453.3,1.70330011]
[1728241937488,4.02798,2453.4,2453.3,1.70330011]
[1728241937850,3.26091,2453.3,2453.2,1.70330011]
[1728241938051,3.26091,2453.3,2453.2,2.13276943]
[1728241938700,4.02811,2453.3,2453.2,0.42946932]
[1728241938940,6.3079372,2453.3,2453.2,0.42946932]
[1728241939100,20.5140912,2453.3,2452.8,1.70330011]
[1728241939400,20.5140912,2453.3,2452.5,2.55314912]
[1728241939401,3.26171,2452.7,2452.6,1.70330011]
[1728241939551,3.26184,2452.6,2452.5,1.70330011]
[1728241939984,3.26171,2452.7,2452.5,1.70330011]
[1728241940296,3.26171,2452.7,2452.4,1.70330011]
[1728241940297,3.26184,2452.6,2452.4,1.70330011]
[1728241940499,3.664731,2452.6,2452.4,1.70330011]
[1728241940855,3.664731,2452.6,2452.3,2.12762426]
[1728241940856,3.664731,2452.6,2452.3,1.70330011]
[1728241941055,3.664731,2452.6,2452.4,1.70330011]
[1728241941557,0.402891,2452.6,2452.3,1.70330011]
[1728241941792,0.7672,2452.4,2452.3,1.70330011]
[1728241943421,1.2104171,2452.4,2452.3,1.70330011]
[1728241943717,1.2104171,2452.4,2452.2,1.70330011]
[1728241944218,1.2104171,2452.4,2452.0,2.12762426]
[1728241944219,1.2104171,2452.4,2452.1,1.70330011]
[1728241944722,4.4726171,2452.4,2452.1,1.70330011]
[1728241944923,3.26224,2452.3,2452.0,1.70330011]
[1728241945338,4.03571371,2452.3,2452.0,1.70330011]
[1728241948429,3.26238,2452.2,2452.0,1.70330011]
[1728241948604,3.26246,2452.2,2452.0,1.70330011]
[1728241948810,3.26246,2452.2,2451.9,1.70330011]
[1728241949227,4.03571371,2452.3,2451.8,2.53460011]
[1728241949413,0.52461308,2452.2,2451.8,2.53460011]
[1728241950261,4.03571371,2452.3,2451.8,2.53460011]
[1728241953759,0.77347371,2452.3,2451.8,2.53460011]
[1728241954056,1.2104171,2452.4,2451.8,2.53460011]
[1728241954352,4.4725371,2452.4,2451.8,2.53460011]
[1728241956464,0.4432171,2452.4,2452.0,0.7946]
[1728241956659,3.26203,2452.5,2452.0,2.49790011]
[1728241957017,3.26203,2452.5,2452.0,0.7946]
[1728241957351,3.26175,2452.7,2452.0,5.76052011]
[1728241960779,0.8004,2452.8,2452.1,5.76032011]
[1728241960780,4.06201,2452.8,2452.1,5.76032011]
[1728241960987,4.06201,2452.8,2452.1,7.21167614]
[1728241961787,13.97303,2452.9,2452.2,0.7946]
[1728241961972,3.26151,2452.9,2452.2,0.7946]
[1728241962173,3.2616,2452.8,2452.2,0.7946]
[1728241962374,3.2616,2452.8,2452.2,2.49790011]
[1728241963145,3.26151,2452.9,2452.2,2.49790011]
[1728241963501,3.26151,2452.9,2452.3,5.75763011]
[1728241963664,3.26123,2453.1,2452.5,0.7921]
[1728241964891,3.26144,2452.9,2452.5,0.7921]
[1728241967312,3.26144,2452.9,2452.5,1.2175793]
[1728241968208,3.26144,2452.9,2452.5,0.7921]
[1728241969434,3.26144,2452.9,2452.5,2.49540011]
[1728241971433,3.26144,2452.9,2452.5,0.7921]
[1728241971648,3.26144,2452.9,2452.5,2.49540011]
[1728241974193,3.26144,2452.9,2452.5,2.92158966]
[1728241974896,3.26144,2452.9,2452.5,2.49540011]
[1728241975094,3.26144,2452.9,2452.5,2.9215806]
[1728241975331,3.26144,2452.9,2452.5,2.49540011]
[1728241976031,3.26144,2452.9,2452.5,2.92157371]
[1728241976204,3.26144,2452.9,2452.5,2.49540011]
[1728241976406,3.26144,2452.9,2452.5,2.92157371]
[1728241978668,3.26144,2452.9,2452.6,1.70330011]
[1728241978846,3.913704,2452.9,2452.6,1.70330011]
[1728241981405,0.652264,2452.9,2452.7,1.70330011]
[1728241981596,3.26131,2453.0,2452.7,1.70330011]
[1728241982658,3.26131,2453.0,2452.8,1.70330011]
[1728241982877,3.26131,2453.0,2452.7,1.70330011]
[1728241983063,4.14768413,2453.0,2452.7,1.70330011]
[1728241983297,4.14768413,2453.0,2452.8,1.70330011]
[1728241991514,4.14768413,2453.0,2452.7,1.70330011]
[1728241991901,4.14768413,2453.0,2452.8,1.70330011]
[1728241998103,4.14768413,2453.0,2452.9,1.70330011]
[1728242001417,4.14768413,2453.0,2452.9,2.13168704]
[1728242001780,4.14768413,2453.0,2452.6,2.55802444]
[1728242001781,4.14768413,2453.0,2452.8,2.13168704]
[1728242002120,3.26131,2453.0,2452.9,1.70614637]
[1728242002484,3.26131,2453.0,2452.8,2.13168704]
[1728242002683,3.26131,2453.0,2452.9,2.13168704]
[1728242004892,3.26131,2453.0,2452.9,2.13358057]
[1728242006829,3.26131,2453.0,2452.7,2.56029668]
[1728242007001,3.26131,2453.0,2452.8,0.42731274]
[1728242007186,3.992391,2453.0,2452.7,2.56029668]
[1728242007387,3.992391,2453.0,2452.8,0.42733878]
[1728242007590,3.992391,2453.0,2452.7,2.56029668]
[1728242007834,3.992391,2453.0,2452.8,0.42733876]
[1728242008012,3.992391,2453.0,2452.7,2.56029668]
[1728242008326,3.992391,2453.0,2452.8,0.42732822]
[1728242008529,3.992391,2453.0,2452.8,2.56029668]
[1728242010012,3.992391,2453.0,2452.8,2.56250275]
[1728242013743,3.992391,2453.0,2452.6,2.98958655]
[1728242013744,3.26066,2453.5,2452.9,2.76075109]
[1728242013943,3.26066,2453.5,2453.4,2.13451359]
[1728242014185,3.26066,2453.5,2453.4,2.13299337]
[1728242014924,3.26066,2453.5,2453.4,2.13284367]
[1728242015248,3.26066,2453.5,2453.4,2.13195064]
[1728242017460,3.26066,2453.5,2453.3,2.13195064]
[1728242017618,2.68615,2453.6,2453.3,2.91245064]
[1728242017825,2.68615,2453.6,2453.5,1.70450356]
[1728242018043,2.68615,2453.6,2453.5,2.13195064]
[1728242018348,2.68615,2453.6,2453.4,2.13195064]
[1728242019259,2.68615,2453.6,2453.5,1.70315753]
[1728242020972,3.26019,2453.9,2453.5,2.48365753]
[1728242021175,10.70991,2454.1,2453.8,0.7805]
[1728242021376,3.25991,2454.1,2453.8,0.7805]
[1728242022926,3.26001,2454.0,2453.8,0.7805]
[1728242026548,3.25991,2454.1,2453.8,0.7805]
[1728242026749,3.26011,2453.9,2453.6,0.8296]
[1728242028390,3.26049,2453.7,2453.4,1.70267924]
[1728242029886,3.26024,2453.8,2453.4,1.70267924]
[1728242030577,3.26038,2453.7,2453.4,1.70267924]
[1728242030894,3.26024,2453.8,2453.4,1.70267924]
[1728242032291,3.26024,2453.8,2453.4,2.39388296]
[1728242035387,3.26024,2453.8,2453.4,0.69120372]
[1728242038616,3.26024,2453.8,2453.3,4.78768998]
[1728242038980,6.52059,2453.8,2453.3,4.78768998]
[1728242040011,3.26024,2453.8,2453.3,4.78768998]
[1728242040516,3.26024,2453.8,2453.3,5.21340453]
[1728242040734,6.52059,2453.8,2453.3,4.78768998]
[1728242040927,3.26041,2453.7,2453.3,4.78768998]
[1728242041533,3.26024,2453.8,2453.3,4.78768998]
[1728242041727,3.26024,2453.8,2453.3,5.21359059]
[1728242042229,3.26024,2453.8,2453.3,4.78768998]
[1728242043486,3.26024,2453.8,2453.4,0.4264616]
[1728242043728,3.26024,2453.8,2453.3,4.78768998]
[1728242043929,3.26024,2453.8,2453.4,0.42646921]
[1728242044413,3.26024,2453.8,2453.5,0.42650755]
[1728242044597,3.26024,2453.8,2453.3,4.08521054]